bitfinex/quotes_BTCUSD_20250218
["timestamp","ask_amount","ask_price","bid_price","bid_amount"]
[1739907061389,0.01602925,93852.0,93851.0,0.023]
[1739907061596,0.01602925,93852.0,93851.0,0.17436473]
[1739907061796,0.01669617,93852.0,93851.0,0.17436473]
[1739907062204,0.01669617,93852.0,93851.0,0.17441412]
[1739907062416,0.01669617,93852.0,93851.0,0.18141412]
[1739907062628,0.1924198,93852.0,93851.0,0.17441412]
[1739907063030,0.17572363,93852.0,93851.0,0.18141412]
[1739907063659,0.17572363,93852.0,93851.0,0.00704939]
[1739907064207,0.17572363,93852.0,93851.0,4.939e-05]
[1739907064598,0.17572363,93852.0,93851.0,0.00704939]
[1739907064863,0.17572363,93852.0,93851.0,4.939e-05]
[1739907065259,0.17572363,93852.0,93851.0,0.00304939]
[1739907065752,0.17572363,93852.0,93830.0,0.0796]
[1739907065753,0.159861,93831.0,93830.0,0.0796]
[1739907065980,0.159861,93831.0,93830.0,0.07973238]
[1739907067399,0.17656137,93831.0,93830.0,0.07973238]
[1739907067817,0.17656137,93831.0,93830.0,0.08673238]
[1739907068100,0.17656137,93831.0,93830.0,0.00713238]
[1739907070547,0.17656137,93831.0,93830.0,0.00013238]
[1739907070902,0.17656137,93831.0,93830.0,0.00613238]
[1739907071109,0.17656137,93831.0,93830.0,0.00013238]
[1739907071310,0.20741818,93833.0,93830.0,0.00013238]
[1739907071537,0.159861,93831.0,93830.0,0.00613238]
[1739907071742,0.17656422,93831.0,93830.0,0.00613238]
[1739907072330,0.17656422,93831.0,93830.0,0.00013238]
[1739907072704,0.17656422,93831.0,93830.0,0.00613238]
[1739907073125,0.159861,93831.0,93830.0,0.00613238]
[1739907073676,0.159861,93831.0,93830.0,0.00013238]
[1739907074077,0.160861,93831.0,93830.0,0.00613238]
[1739907074323,0.160861,93831.0,93830.0,0.00013238]
[1739907074688,0.160861,93831.0,93830.0,0.00213238]
[1739907074895,0.159861,93831.0,93830.0,0.00013238]
[1739907075294,0.159861,93831.0,93830.0,0.00113238]
[1739907075502,0.159861,93831.0,93830.0,0.00013238]
[1739907076042,0.17656431,93831.0,93830.0,0.00013238]
[1739907076452,0.159861,93831.0,93830.0,0.00013238]
[1739907076606,0.132501,93831.0,93830.0,0.00013238]
[1739907077850,0.132501,93831.0,93830.0,0.00113238]
[1739907078004,0.132501,93831.0,93830.0,0.00013238]
[1739907078209,0.00816401,93837.0,93811.0,0.0777]
[1739907078210,0.159894,93812.0,93811.0,0.0777]
[1739907078413,0.159894,93812.0,93811.0,0.07783253]
[1739907079618,0.160894,93812.0,93811.0,0.08383253]
[1739907079861,0.1775983,93812.0,93811.0,0.08383253]
[1739907080728,0.1765983,93812.0,93811.0,0.07783253]
[1739907081123,0.1765983,93812.0,93811.0,0.00013253]
[1739907081572,0.1765983,93812.0,93811.0,0.00513253]
[1739907082571,0.1765983,93812.0,93811.0,0.0132879]
[1739907082791,0.1765983,93812.0,93811.0,0.00513253]
[1739907082980,0.15286121,93830.0,93811.0,0.00513253]
[1739907083157,0.15988,93820.0,93819.0,0.0779]
[1739907083353,0.15988,93820.0,93819.0,0.09420966]
[1739907083555,0.15988,93820.0,93819.0,0.0779]
[1739907084878,0.15988,93820.0,93819.0,0.0809]
[1739907085084,0.159892,93813.0,93812.0,0.0812]
[1739907087201,0.17659599,93813.0,93812.0,0.0812]
[1739907087853,0.17659599,93813.0,93812.0,0.0862]
[1739907090043,0.18461068,93813.0,93812.0,0.005]
[1739907091562,0.159894,93812.0,93811.0,0.00013253]
[1739907091757,0.159894,93812.0,93811.0,0.08333253]
[1739907094180,0.159894,93812.0,93811.0,0.11133253]
[1739907094360,0.159894,93812.0,93811.0,0.10633253]
[1739907094490,0.0001702,93831.0,93812.0,0.023]
[1739907094725,0.159882,93819.0,93818.0,0.1043]
[1739907095007,0.0001702,93831.0,93818.0,0.1519]
[1739907095008,0.213164,93825.0,93818.0,0.1519]
[1739907095188,0.159875,93823.0,93822.0,0.023]
[1739907095439,0.0001702,93831.0,93822.0,0.023]
[1739907095651,0.0001702,93831.0,93828.0,0.023]
[1739907095862,0.159863,93830.0,93829.0,0.1001]
[1739907096314,0.17656415,93830.0,93829.0,0.11862966]
[1739907096502,0.01670115,93830.0,93829.0,0.31602966]
[1739907097813,0.01670115,93830.0,93829.0,0.48289466]
[1739907098098,0.01670115,93830.0,93829.0,0.31602966]
[1739907098297,0.01670115,93830.0,93829.0,0.58539831]
[1739907098738,0.01670115,93830.0,93829.0,0.57839831]
[1739907098942,0.01670115,93830.0,93829.0,0.42553331]
[1739907099828,0.01670115,93830.0,93829.0,0.58539831]
[1739907100019,0.01670115,93830.0,93829.0,0.42553331]
[1739907100206,0.01670115,93830.0,93829.0,0.57839831]
[1739907100406,0.01670115,93830.0,93829.0,0.59954858]
[1739907100631,0.01670115,93830.0,93829.0,0.60654858]
[1739907100785,0.01670115,93830.0,93829.0,0.59954858]
[1739907101337,0.01670115,93830.0,93829.0,0.60654858]
[1739907101489,0.01670115,93830.0,93829.0,0.59954858]
[1739907101698,0.01670115,93830.0,93829.0,0.60654858]
[1739907102088,0.01670115,93830.0,93829.0,0.59954858]
[1739907102288,0.0001702,93831.0,93829.0,0.59954858]
[1739907102471,0.0001702,93831.0,93830.0,0.66793577]
[1739907102681,0.0001702,93831.0,93830.0,0.6668703]
[1739907103711,0.0001702,93852.0,93851.0,0.455827]
[1739907103910,0.0001702,93852.0,93851.0,0.55833065]
[1739907104125,0.0001702,93852.0,93851.0,0.63547432]
[1739907104987,0.0001702,93852.0,93851.0,0.64260685]
[1739907106747,0.15286121,93930.0,93859.0,0.082]
[1739907106922,0.01669386,93872.0,93860.0,0.173]
[1739907107154,0.159806,93864.0,93862.0,0.023]
[1739907107552,0.01669376,93872.0,93862.0,0.023]
[1739907107674,0.01469417,93864.0,93863.0,0.048]
[1739907108036,0.01669376,93872.0,93863.0,0.048]
[1739907108037,0.159802,93866.0,93864.0,0.023]
[1739907108207,0.01669376,93872.0,93864.0,0.023]
[1739907108411,0.159803,93865.0,93864.0,0.023]
[1739907109619,0.03148676,93872.0,93871.0,0.023]
[1739907109798,0.03148676,93872.0,93871.0,0.0987]
[1739907110236,0.03148676,93872.0,93871.0,0.258493]
[1739907110617,0.03148676,93872.0,93871.0,0.415493]
[1739907110815,0.01669376,93872.0,93871.0,0.50186806]
[1739907111820,0.01669376,93872.0,93871.0,0.55126806]
[1739907113088,0.01514938,93878.0,93873.0,0.023]
[1739907113292,0.01514938,93878.0,93874.0,0.159787]
[1739907113490,0.213015,93890.0,93875.0,0.06752973]
[1739907113691,0.159782,93878.0,93875.0,0.06752973]
[1739907113920,0.213017,93889.0,93877.0,0.023]
[1739907114051,0.159781,93878.0,93877.0,0.27550365]
[1739907114781,0.159777,93881.0,93878.0,0.023]
[1739907114982,0.15978,93879.0,93878.0,0.023]
[1739907115609,0.213031,93883.0,93878.0,0.023]
[1739907115817,0.159778,93880.0,93879.0,0.09228714]
[1739907116015,0.17646936,93880.0,93879.0,0.09228714]
[1739907116662,0.01669136,93880.0,93879.0,0.09228714]
[1739907116837,0.17646936,93880.0,93879.0,0.023]
[1739907117421,0.01669136,93880.0,93879.0,0.023]
[1739907117621,0.01669136,93880.0,93879.0,0.03]
[1739907117856,0.17646936,93880.0,93879.0,0.03]
[1739907118420,0.01669136,93880.0,93879.0,0.03]
[1739907118619,0.01669136,93880.0,93879.0,0.05017479]
[1739907118878,0.17646936,93880.0,93879.0,0.05017479]
[1739907119080,0.17646936,93880.0,93879.0,0.04317479]
[1739907119287,0.17646936,93880.0,93879.0,0.20995479]
[1739907119288,0.01669136,93880.0,93879.0,0.20995479]
[1739907119499,0.01669136,93880.0,93879.0,0.28555479]
[1739907119886,0.01669136,93880.0,93879.0,0.13277479]
[1739907120049,0.01669136,93880.0,93879.0,0.12577479]
[1739907120446,0.01669136,93880.0,93879.0,0.13277479]
[1739907121076,0.01669136,93880.0,93879.0,0.29255479]
[1739907121279,0.212991,93901.0,93880.0,0.173]
[1739907121513,0.01669146,93895.0,93892.0,0.15]
[1739907121717,0.01669146,93895.0,93893.0,0.023]
[1739907122094,0.01669146,93895.0,93894.0,0.0681]
[1739907122384,0.17644346,93895.0,93894.0,0.023]
[1739907122588,0.00044104,93895.0,93879.0,0.007]
[1739907122764,0.00044104,93895.0,93878.0,0.023]
[1739907122939,0.15978,93879.0,93878.0,0.023]
[1739907123345,0.15978,93879.0,93878.0,0.03792]
[1739907123546,0.00044104,93895.0,93878.0,0.03792]
[1739907123547,0.15978,93880.0,93878.0,0.03792]
[1739907123753,0.213034,93882.0,93879.0,0.029]
[1739907123951,0.159776,93881.0,93880.0,0.023]
[1739907124183,0.213013,93891.0,93879.0,0.023]
[1739907124527,0.00044104,93895.0,93881.0,0.023]
[1739907124809,0.00044104,93895.0,93886.0,0.023]
[1739907124955,0.159766,93887.0,93886.0,0.023]
[1739907125988,0.159778,93880.0,93879.0,0.0758]
[1739907126189,0.159778,93880.0,93879.0,0.0988]
[1739907126458,0.213006,93894.0,93880.0,0.023]
[1739907126610,0.159776,93881.0,93880.0,0.023]
[1739907126949,0.00044104,93895.0,93867.0,0.0758]
[1739907126950,0.159798,93868.0,93867.0,0.0758]
[1739907127365,0.159798,93868.0,93867.0,0.0988]
[1739907127568,0.01669224,93880.0,93868.0,0.023]
[1739907127720,0.01669224,93880.0,93870.0,0.17586121]
[1739907127927,0.213035,93882.0,93872.0,0.023]
[1739907128121,0.01669246,93878.0,93872.0,0.12550365]
[1739907128328,0.01669246,93878.0,93874.0,0.023]
[1739907128529,0.01669246,93878.0,93877.0,0.380283]
[1739907128709,0.01669246,93878.0,93877.0,0.55908665]
[1739907128913,0.212959,93915.0,93886.0,0.0003402]
[1739907129117,0.01669048,93895.0,93886.0,0.00047273]
[1739907129326,0.01669048,93895.0,93888.0,0.173]
[1739907129953,0.01669048,93895.0,93893.0,0.023]
[1739907130945,0.159754,93894.0,93893.0,0.023]
[1739907131145,0.01669048,93895.0,93893.0,0.023]
[1739907131358,0.159754,93894.0,93893.0,0.023]
[1739907132376,0.159754,93894.0,93893.0,0.03]
[1739907132729,0.159754,93894.0,93893.0,0.023]
[1739907132966,0.159754,93894.0,93893.0,0.03]
[1739907133344,0.159754,93894.0,93893.0,0.06670035]
[1739907133877,0.159754,93894.0,93893.0,0.05970035]
[1739907134077,0.159754,93894.0,93893.0,0.06670035]
[1739907134999,0.01534085,93900.0,93893.0,0.06670035]
[1739907135202,0.01534085,93900.0,93897.0,0.023]
[1739907135405,0.212969,93911.0,93899.0,0.023]
[1739907135612,0.212971,93910.0,93899.0,0.023]
[1739907135846,0.0025,93935.0,93901.0,0.173]
[1739907136049,0.0208,93939.0,93902.0,0.023]
[1739907136050,0.01548821,93908.0,93902.0,0.023]
[1739907136258,0.1599007,93908.0,93902.0,0.023]
[1739907136673,0.159733,93907.0,93902.0,0.023]
[1739907136897,0.212977,93907.0,93902.0,0.023]
[1739907137109,0.212977,93907.0,93902.0,0.06953199]
[1739907137313,0.01668759,93906.0,93902.0,0.06953199]
[1739907137520,0.01668759,93906.0,93902.0,0.07653199]
[1739907137732,0.01668759,93906.0,93903.0,0.0240648]
[1739907137973,0.01668759,93906.0,93905.0,0.023]
[1739907138170,0.17642159,93906.0,93905.0,0.023]
[1739907138990,0.01668759,93906.0,93905.0,0.023]
[1739907139411,0.17642159,93906.0,93905.0,0.023]
[1739907139628,0.17642159,93906.0,93905.0,0.03]
[1739907139831,0.01668759,93906.0,93905.0,0.07343452]
[1739907140678,0.01668759,93906.0,93905.0,0.03]
[1739907140679,0.17642159,93906.0,93905.0,0.03]
[1739907141253,0.01668759,93906.0,93905.0,0.03]
[1739907141569,0.17642159,93906.0,93905.0,0.03]
[1739907141774,0.17642159,93906.0,93905.0,0.023]
[1739907141914,0.17642159,93906.0,93905.0,0.03]
[1739907142320,0.17642159,93906.0,93905.0,0.023]
[1739907142560,0.17642159,93906.0,93905.0,0.03]
[1739907142766,0.17642159,93906.0,93905.0,0.023]
[1739907142973,0.159734,93906.0,93905.0,0.023]
[1739907143174,0.159734,93906.0,93905.0,0.03]
[1739907143778,0.159734,93906.0,93905.0,0.037]
[1739907145080,0.15974,93903.0,93900.0,0.07808]
[1739907145290,0.159736,93905.0,93901.0,0.03347943]
[1739907145497,0.00017,93907.0,93900.0,0.07808]
[1739907145998,0.159737,93904.0,93900.0,0.07808]
[1739907146204,0.00017,93907.0,93900.0,0.07808]
[1739907146415,0.159734,93906.0,93900.0,0.07808]
[1739907146593,0.00017,93907.0,93900.0,0.08508]
[1739907146733,0.00017,93907.0,93901.0,0.05019137]
[1739907146946,0.00017,93907.0,93864.0,0.09565664]
[1739907146947,0.00017,93907.0,93871.0,0.213057]
[1739907147159,0.159756,93893.0,93874.0,0.159787]
[1739907147370,0.159756,93893.0,93879.0,0.15]
[1739907147590,0.159756,93893.0,93881.0,0.15]
[1739907147793,0.1764454,93893.0,93881.0,0.15]
[1739907148209,0.1764454,93893.0,93891.0,0.15]
[1739907148913,0.1764454,93893.0,93882.0,0.0759]
[1739907148914,0.159766,93887.0,93882.0,0.0759]
[1739907149333,0.159766,93887.0,93886.0,0.01266]
[1739907149494,0.159766,93887.0,93886.0,0.00047273]
[1739907151539,0.159766,93887.0,93886.0,0.00747273]
[1739907152171,0.159766,93887.0,93886.0,0.01447273]
[1739907152380,0.159766,93887.0,93886.0,0.00047273]
[1739907152785,0.159766,93887.0,93886.0,0.00747273]
[1739907156164,0.17645805,93887.0,93886.0,0.00747273]
[1739907158104,0.2588137,93887.0,93886.0,0.00747273]
[1739907158240,0.17645805,93887.0,93886.0,0.00747273]
[1739907158432,0.17645805,93887.0,93886.0,0.00047273]
[1739907158858,0.17745805,93887.0,93886.0,0.00647273]
[1739907159069,0.17745805,93887.0,93886.0,0.00047273]
[1739907159273,0.17745805,93887.0,93886.0,0.00447273]
[1739907159710,0.17645805,93887.0,93886.0,0.00047273]
[1739907159909,0.17645805,93887.0,93886.0,0.00447273]
[1739907160670,0.01669205,93887.0,93886.0,0.08467273]
[1739907160877,0.17645805,93887.0,93886.0,0.08467273]
[1739907161207,0.17645805,93887.0,93886.0,0.08067273]
[1739907161406,0.17645805,93887.0,93886.0,0.08467273]
[1739907161651,0.01669205,93887.0,93886.0,0.08067273]
[1739907161854,0.17645805,93887.0,93886.0,0.13007273]
[1739907162114,0.17645805,93887.0,93886.0,0.14808]
[1739907162871,0.17645805,93887.0,93886.0,0.14308]
[1739907163101,0.159766,93887.0,93886.0,0.14708]
[1739907163356,0.159766,93887.0,93886.0,0.13407273]
[1739907164309,0.159766,93887.0,93886.0,0.13007273]
[1739907164693,0.159766,93887.0,93886.0,0.13707273]
[1739907164888,0.159766,93887.0,93886.0,0.00047273]
[1739907165354,0.159766,93887.0,93886.0,0.00747273]
[1739907165513,0.159766,93887.0,93886.0,0.00047273]
[1739907165894,0.159766,93887.0,93886.0,0.00747273]
[1739907166476,0.159766,93887.0,93886.0,0.00047273]
[1739907167271,0.17645752,93887.0,93886.0,0.00047273]
[1739907167487,0.0001701,93900.0,93896.0,0.15]
[1739907167689,0.0001701,93900.0,93899.0,0.16709656]
[1739907167690,0.1599141,93900.0,93899.0,0.16709656]
[1739907167867,0.1599141,93900.0,93899.0,0.20905658]
[1739907168293,0.1599141,93900.0,93899.0,0.16709656]
[1739907168696,0.159761,93890.0,93889.0,0.13289656]
[1739907168900,0.2131641,93900.0,93890.0,0.023]
[1739907169149,0.2131641,93900.0,93889.0,0.29265856]
[1739907169150,0.0001701,93900.0,93892.0,0.173]
[1739907169356,0.1609141,93900.0,93899.0,0.09219656]
[1739907169565,0.0001701,93900.0,93899.0,0.35024256]
[1739907169834,0.00017,93907.0,93906.0,0.332734]
[1739907170019,0.00017,93907.0,93906.0,0.33455152]
[1739907170232,0.00017,93907.0,93906.0,0.59678917]
[1739907171988,0.00812403,93955.0,93915.0,0.15]
[1739907172165,0.159686,93935.0,93924.0,0.34529956]
[1739907172388,0.018278,93932.0,93924.0,0.34529956]
[1739907173249,0.018278,93932.0,93924.0,0.59780321]
[1739907173424,0.018278,93932.0,93924.0,0.64590321]
[1739907173884,0.2130597,93946.0,93924.0,0.64590321]
[1739907174056,0.01826116,93937.0,93924.0,0.64590321]
[1739907174288,0.0001707,93946.0,93924.0,0.64590321]
[1739907174647,0.159678,93939.0,93924.0,0.64590321]
[1739907174854,0.01833226,93937.0,93924.0,0.65290321]
[1739907175273,0.01833226,93937.0,93924.0,0.67423199]
[1739907175505,0.01833226,93937.0,93924.0,0.77673564]
[1739907176047,0.01833226,93937.0,93924.0,0.76973564]
[1739907176744,0.01668234,93936.0,93924.0,0.76973564]
[1739907177868,0.01668234,93936.0,93924.0,0.61003264]
[1739907178072,0.159691,93931.0,93924.0,0.65290321]
[1739907178222,0.15969,93932.0,93924.0,0.65290321]
[1739907178689,0.01668234,93936.0,93935.0,0.309684]
[1739907178890,0.01681432,93936.0,93935.0,0.56118765]
[1739907179539,0.15,93989.0,93945.0,0.236367]
[1739907179540,0.01893544,93951.0,93945.0,0.236367]
[1739907179739,0.01668045,93953.0,93945.0,0.55679775]
[1739907180180,0.13662638,93972.0,93946.0,0.173]
[1739907180366,0.01869609,93977.0,93962.0,0.0493]
[1739907180574,0.01869609,93977.0,93964.0,0.023]
[1739907180774,0.00013235,93990.0,93972.0,0.023]
[1739907180899,0.00013235,93990.0,93974.0,0.15]
[1739907181094,0.0185629,93990.0,93976.0,0.15]
[1739907181325,0.00013235,93990.0,93976.0,0.15]
[1739907181531,0.00013235,93990.0,93977.0,0.023]
[1739907182368,0.01866201,93990.0,93982.0,0.023]
[1739907182737,0.00013235,93990.0,93983.0,0.01121966]
[1739907183820,0.01837403,93990.0,93983.0,0.01121966]
[1739907184055,0.01837403,93990.0,93977.0,0.006]
[1739907184255,0.00013235,93990.0,93961.0,0.08519656]
[1739907184384,0.15286121,93981.0,93972.0,0.02]
[1739907184623,0.15286121,93981.0,93965.0,0.02]
[1739907184826,0.15286121,93975.0,93966.0,0.02]
[1739907185005,0.15286121,93975.0,93966.0,0.02013235]
[1739907185611,0.15286121,93975.0,93972.0,0.001]
[1739907185855,0.15286121,93982.0,93972.0,0.001]
[1739907186090,0.15286121,93982.0,93966.0,0.00013235]
[1739907186420,0.06344707,93990.0,93975.0,0.02]
[1739907186421,0.00806996,93981.0,93975.0,0.02]
[1739907186649,0.01879725,93990.0,93980.0,0.02]
[1739907186820,0.15286121,94010.0,93980.0,0.02]
[1739907187046,0.0188122,93990.0,93980.0,0.02]
[1739907187249,0.0201701,94019.0,93980.0,0.02]
[1739907187250,0.15286121,94000.0,93980.0,0.02]
[1739907188020,0.15286121,94000.0,93980.0,0.021]
[1739907188403,0.1701701,94019.0,93980.0,0.02]
[1739907188602,0.0001699,93990.0,93980.0,0.021]
[1739907188805,0.0001699,93990.0,93980.0,0.02]
[1739907189389,0.01875595,93990.0,93989.0,0.159593]
[1739907189537,0.0001699,93990.0,93989.0,0.1246]
[1739907189759,0.0001699,93990.0,93989.0,0.38956365]
[1739907190170,0.0001699,93990.0,93989.0,0.28706]
[1739907190771,0.0001699,93990.0,93989.0,0.2746]
[1739907191374,0.0001699,93990.0,93989.0,0.2816]
[1739907191578,0.0001699,93990.0,93989.0,0.2746]
[1739907191980,0.0001699,93990.0,93989.0,0.2816]
[1739907192167,0.0001699,93990.0,93986.0,0.02]
[1739907192587,0.0001699,93990.0,93989.0,0.007]
[1739907193639,0.0001699,93990.0,93989.0,0.05421966]
[1739907194085,0.0001699,93990.0,93989.0,0.47331631]
[1739907194332,0.0001699,93990.0,93989.0,0.46631631]
[1739907194746,0.0001699,93990.0,93989.0,0.47331631]
[1739907194962,0.0001701,94019.0,94018.0,0.1447]
[1739907195172,0.0001701,94019.0,94018.0,0.25289656]
[1739907195785,0.0001701,94019.0,94018.0,0.22989656]
[1739907195992,0.01852835,94019.0,94018.0,0.22989656]
[1739907196198,0.0001701,94019.0,94018.0,0.22989656]
[1739907196407,0.00061116,94019.0,94018.0,0.52838987]
[1739907196619,0.00061116,94019.0,94018.0,0.68793287]
[1739907196860,0.00011116,94019.0,94018.0,0.52838987]
[1739907197244,0.00011116,94019.0,94018.0,0.37989656]
[1739907197491,0.00011116,94019.0,94018.0,0.2947]
[1739907197664,0.00011116,94019.0,94018.0,0.3017]
[1739907197903,0.00011116,94019.0,94018.0,0.2947]
[1739907198117,0.00011116,94019.0,94018.0,0.57974665]
[1739907198295,0.00011116,94019.0,94018.0,0.66599412]
[1739907198494,0.00011116,94019.0,94018.0,0.65899412]
[1739907198858,0.00011116,94019.0,94018.0,0.66599412]
[1739907199056,0.00796144,94064.0,94018.0,0.66599412]
[1739907199287,0.00796144,94064.0,94044.0,0.173]
[1739907199493,0.01666346,94045.0,94044.0,0.173]
[1739907199713,0.00796144,94064.0,94044.0,0.173]
[1739907200037,0.0001698,94114.0,94044.0,0.173]
[1739907200038,0.15286121,94080.0,94058.0,0.02]
[1739907200261,0.01666225,94060.0,94059.0,0.017]
[1739907200654,0.01894733,94060.0,94058.0,0.02]
[1739907200833,0.01679323,94060.0,94058.0,0.02]
[1739907201641,0.01679323,94060.0,94059.0,0.02]
[1739907203538,0.00013234,94060.0,94059.0,0.02]
[1739907203731,0.01839957,94060.0,94057.0,0.02]
[1739907204099,0.06364,94059.0,94055.0,0.02]
[1739907204331,0.00013234,94060.0,94055.0,0.02]
[1739907204751,0.01839282,94060.0,94048.0,0.02]
[1739907204984,0.2284975,94058.0,94036.0,0.02]
[1739907205160,0.2284975,94043.0,94036.0,0.02]
[1739907205479,0.2284975,94043.0,94035.0,0.02]
[1739907206246,0.2284975,94043.0,94029.0,0.02]
[1739907206571,0.01666492,94042.0,94030.0,0.017]
[1739907206812,0.01666492,94042.0,94029.0,0.02]
[1739907207399,0.01666492,94042.0,94036.0,0.002]
[1739907208220,0.01666492,94042.0,94029.0,0.02]
[1739907208688,0.01666492,94042.0,94036.0,0.002]
[1739907209160,0.01666492,94042.0,93976.0,0.23139826]
[1739907209161,0.2284975,94033.0,94018.0,0.0003396]
[1739907209450,0.02284975,94032.0,94018.0,0.0003396]
[1739907209914,0.01666764,94030.0,94018.0,0.0003396]
[1739907210357,0.01666764,94030.0,94029.0,0.002]
[1739907210786,0.01666764,94030.0,94018.0,0.0003396]
[1739907211193,0.0167999,94030.0,94018.0,0.0003396]
[1739907211803,0.04561462,94030.0,94018.0,0.0003396]
[1739907212032,1.257195,94029.0,94018.0,6e-07]
[1739907212984,0.00791481,94019.0,94018.0,6e-07]
[1739907215022,0.02791481,94019.0,94018.0,6e-07]
[1739907215982,0.06595721,94019.0,94018.0,6e-07]
[1739907216219,0.09765293,94019.0,94018.0,6e-07]
[1739907216602,0.25065293,94019.0,94018.0,6e-07]
[1739907217122,0.25365293,94019.0,94018.0,6e-07]
[1739907217525,0.24765293,94019.0,94018.0,6e-07]
[1739907217905,0.25165293,94019.0,94018.0,6e-07]
[1739907218305,0.1426394,94018.0,93979.0,0.0652]
[1739907218509,0.2284975,93992.0,93979.0,0.0652]
[1739907219088,0.01667397,93990.0,93979.0,0.0652]
[1739907219720,0.01667397,93990.0,93982.0,0.08563762]
[1739907221092,0.01667397,93990.0,93982.0,0.08763762]
[1739907221276,0.01667397,93990.0,93982.0,0.08563762]
[1739907221662,0.03391646,93990.0,93982.0,0.08563762]
[1739907221862,0.01667397,93990.0,93982.0,0.08563762]
[1739907222076,0.04119112,93990.0,93982.0,0.08563762]
[1739907223087,0.04119112,93990.0,93982.0,0.08763762]
[1739907223509,0.04119112,93990.0,93982.0,0.08597802]
[1739907223705,0.05817549,93990.0,93982.0,0.08697802]
[1739907223954,0.05817549,93990.0,93982.0,0.08597802]
[1739907224353,0.00812914,93983.0,93982.0,0.08797802]
[1739907224994,0.01698437,93990.0,93985.0,0.02]
[1739907225199,0.00813314,93986.0,93985.0,0.02]
[1739907226731,0.00659572,94019.0,93985.0,0.1026]
[1739907226732,0.15263727,94010.0,93985.0,0.1026]
[1739907226927,0.01675903,94000.0,93995.0,0.08519656]
[1739907227079,0.00782757,93996.0,93995.0,0.08519656]
[1739907228097,0.02449959,93996.0,93995.0,0.08519656]
[1739907228334,0.02449959,93996.0,93989.0,0.02]
[1739907229341,0.04221328,93996.0,93986.0,0.0492]
[1739907229547,0.04221328,93996.0,93995.0,0.005]
[1739907229760,0.04221328,93996.0,93986.0,0.0492]
[1739907229967,0.02449959,93996.0,93992.0,0.08519656]
[1739907232867,0.00782757,93996.0,93992.0,0.08519656]
[1739907233275,0.00782757,93996.0,93992.0,0.08819656]
[1739907233488,0.00782757,93996.0,93992.0,0.08519656]
[1739907233690,0.00782757,93996.0,93992.0,0.08919656]
[1739907234196,0.00782757,93996.0,93992.0,0.08519656]
[1739907234409,0.00882757,93996.0,93992.0,0.09019656]
[1739907234816,0.00882757,93996.0,93994.0,0.02]
[1739907235606,0.00782757,93996.0,93995.0,0.02]
[1739907236035,0.02449845,93996.0,93995.0,0.04]
[1739907236666,0.15263727,94010.0,93995.0,0.04]
[1739907237021,0.001,93996.0,93995.0,0.045]
[1739907237225,0.06464,93996.0,93995.0,0.045]
[1739907237434,0.15263727,94010.0,93998.0,0.02]
[1739907237770,0.00804356,93999.0,93998.0,0.02]
[1739907239438,0.00804356,93999.0,93998.0,0.023]
[1739907239646,0.01715457,93999.0,93998.0,0.003]
[1739907240250,0.03382585,93999.0,93998.0,0.003]
[1739907240795,0.02471484,93999.0,93998.0,0.003]
[1739907241917,0.02471484,93999.0,93992.0,0.08553696]
[1739907242615,0.02471484,93999.0,93998.0,0.003]
[1739907243302,0.02471484,93999.0,93992.0,0.0003404]
[1739907243558,0.02471484,93999.0,93992.0,4e-07]
[1739907243768,5.05,93998.0,93982.0,0.00078146]
[1739907243975,0.15263727,93992.0,93982.0,0.00078146]
[1739907244195,5.05,93991.0,93982.0,0.00078146]
[1739907244435,5.0709911,93991.0,93982.0,0.00078146]
[1739907244677,0.15263727,93992.0,93982.0,0.00078146]
[1739907244885,5.05,93991.0,93982.0,0.00078146]
[1739907245361,4.1546,93990.0,93982.0,0.00078146]
[1739907245590,0.4093,93989.0,93982.0,0.00078146]
[1739907245778,0.15263727,93992.0,93982.0,0.00078146]
[1739907245779,0.8167,93991.0,93982.0,0.00078146]
[1739907246561,0.8167,93991.0,93982.0,0.00278146]
[1739907246757,0.8167,93991.0,93982.0,0.00078146]
[1739907247380,0.00804356,93999.0,93983.0,0.08519656]
[1739907247626,0.15263727,93993.0,93983.0,0.08519656]
[1739907248203,0.01667543,93991.0,93983.0,0.08519656]
[1739907249297,0.01667543,93991.0,93983.0,0.08719656]
[1739907249661,0.01667543,93991.0,93983.0,0.08919656]
[1739907249874,0.01667543,93991.0,93983.0,0.08519656]
[1739907250363,0.01667543,93991.0,93983.0,0.08719656]
[1739907250831,0.01693127,93990.0,93983.0,0.08719656]
[1739907251545,0.01667543,93991.0,93983.0,0.08719656]
[1739907251773,0.01667543,93991.0,93983.0,0.08519656]
[1739907253094,0.15263727,93993.0,93983.0,0.08519656]
[1739907253539,0.001,93991.0,93983.0,0.08519656]
[1739907254782,0.001,93991.0,93984.0,0.0499]
[1739907255465,0.15263727,93994.0,93984.0,0.0499]
[1739907255695,0.01606808,93993.0,93984.0,0.0499]
[1739907256104,0.01667511,93992.0,93984.0,0.0499]
[1739907256323,0.01667511,93992.0,93984.0,0.0519]
[1739907256543,0.01667511,93992.0,93984.0,0.0499]
[1739907256744,0.01667511,93992.0,93984.0,0.0509]
[1739907257331,0.15263727,93994.0,93984.0,0.0509]
[1739907257536,0.0166755,93991.0,93984.0,0.0509]
[1739907258395,0.00788444,93985.0,93984.0,0.0529]
[1739907258596,0.00788444,93985.0,93984.0,0.002]
[1739907258808,0.00788444,93985.0,93983.0,0.08519656]
[1739907258949,0.00788444,93985.0,93984.0,0.001]
[1739907259596,0.00788444,93985.0,93984.0,0.003]
[1739907259937,0.00788444,93985.0,93983.0,0.08519656]
[1739907260085,0.00788444,93985.0,93984.0,0.001]
[1739907261911,0.00788444,93985.0,93984.0,0.0013404]
[1739907262249,0.00788444,93985.0,93983.0,0.08153696]
[1739907263202,0.00788444,93985.0,93984.0,0.0826]
[1739907265490,0.00788444,93985.0,93984.0,0.1036]
[1739907266059,0.02455905,93985.0,93984.0,0.1026]
[1739907266402,0.01131725,93985.0,93984.0,0.3196]
[1739907266650,0.00809586,93988.0,93987.0,0.2945]
[1739907266862,0.15263727,94020.0,93995.0,0.0775]
[1739907267067,0.01750094,94018.0,94008.0,0.08519656]
[1739907267283,0.15263727,94020.0,94009.0,0.0775]
[1739907267284,0.00806128,94011.0,94009.0,0.0775]
[1739907267706,0.00806128,94011.0,94008.0,0.08519656]